[Event "*** MasterClass Titled Tuesday Blitz"]
[Site "Chess.com"]
[Date "2017.10.03"]
[Round "5"]
[White "JammyDodger91"]
[Black "SantoBlue"]
[Result "0-1"]
[WhiteElo "2412"]
[BlackElo "2554"]
[TimeControl "180+2"]
[EndTime "14:03:48 PDT"]
[Termination "SantoBlue won by checkmate"]

1. e4 {[%clk 0:03:01.9]} 1... g6 {[%clk 0:02:48.2]} 2. d4 {[%clk 0:03:02.5]}
2... Bg7 {[%clk 0:02:48.3]} 3. Nc3 {[%clk 0:03:04]} 3... d6 {[%clk 0:02:49.2]}
4. f4 {[%clk 0:03:05.1]} 4... Nf6 {[%clk 0:02:49.1]} 5. Nf3 {[%clk 0:03:06.1]}
5... O-O {[%clk 0:02:50.7]} 6. Bd3 {[%clk 0:03:05.9]} 6... Nc6 {[%clk
0:02:50.8]} 7. O-O {[%clk 0:03:04.4]} 7... Bg4 {[%clk 0:02:50.8]} 8. e5 {[%clk
0:03:02.1]} 8... dxe5 {[%clk 0:02:49]} 9. dxe5 {[%clk 0:03:04]} 9... Nd5 {[%clk
0:02:48.4]} 10. Be4 {[%clk 0:02:50]} 10... Nxc3 {[%clk 0:02:48.7]} 11. bxc3
{[%clk 0:02:51.9]} 11... e6 {[%clk 0:02:42.5]} 12. Rb1 {[%clk 0:02:48.4]} 12...
Rb8 {[%clk 0:02:41.8]} 13. Be3 {[%clk 0:02:48.6]} 13... a6 {[%clk 0:02:34.4]}
14. Qe2 {[%clk 0:02:43]} 14... Qe8 {[%clk 0:02:28.3]} 15. Qc4 {[%clk 0:02:38.3]}
15... Bxf3 {[%clk 0:02:25.4]} 16. Bxf3 {[%clk 0:02:37.6]} 16... Kh8 {[%clk
0:02:18]} 17. Rfd1 {[%clk 0:02:07.2]} 17... Bh6 {[%clk 0:02:11.8]} 18. Bxc6
{[%clk 0:01:27.7]} 18... bxc6 {[%clk 0:02:01.8]} 19. Rxb8 {[%clk 0:01:27]} 19...
Qxb8 {[%clk 0:02:03.7]} 20. Qxc6 {[%clk 0:01:28.4]} 20... Qb2 {[%clk 0:01:56.9]}
21. Qxa6 {[%clk 0:01:04.4]} 21... Qxc2 {[%clk 0:01:56.6]} 22. Rd7 {[%clk
0:00:55.7]} 22... Qxc3 {[%clk 0:01:47.9]} 23. Qa7 {[%clk 0:00:38.1]} 23... Qe1#
{[%clk 0:01:47.9]} 0-1

[Event "*** MasterClass Titled Tuesday Blitz"]
[Site "Chess.com"]
[Date "2017.10.03"]
[Round "5"]
[White "JosephRyan"]
[Black "ruzomberok"]
[Result "1-0"]
[WhiteElo "2225"]
[BlackElo "2339"]
[TimeControl "180+2"]
[EndTime "14:03:49 PDT"]
[Termination "JosephRyan won by checkmate"]

1. e4 {[%clk 0:02:59.1]} 1... c5 {[%clk 0:02:59.8]} 2. Nf3 {[%clk 0:02:59.5]}
2... d6 {[%clk 0:03:00.3]} 3. Bb5+ {[%clk 0:02:59.3]} 3... Nd7 {[%clk
0:02:58.5]} 4. d4 {[%clk 0:02:59.3]} 4... cxd4 {[%clk 0:02:59]} 5. Qxd4 {[%clk
0:03:00.3]} 5... a6 {[%clk 0:02:59.7]} 6. Bxd7+ {[%clk 0:02:58.9]} 6... Bxd7
{[%clk 0:02:59.9]} 7. Nc3 {[%clk 0:02:59.4]} 7... Nf6 {[%clk 0:03:00.6]} 8. Bg5
{[%clk 0:02:46.9]} 8... e5 {[%clk 0:03:00.5]} 9. Qd3 {[%clk 0:02:45]} 9... Be6
{[%clk 0:02:56.9]} 10. O-O {[%clk 0:02:40.4]} 10... h6 {[%clk 0:02:56.4]} 11.
Bxf6 {[%clk 0:02:32.7]} 11... Qxf6 {[%clk 0:02:58.3]} 12. Nd5 {[%clk 0:02:32.3]}
12... Bxd5 {[%clk 0:02:53.8]} 13. Qxd5 {[%clk 0:02:32.2]} 13... O-O-O {[%clk
0:02:52]} 14. a4 {[%clk 0:02:26.4]} 14... Be7 {[%clk 0:02:51.8]} 15. a5 {[%clk
0:02:17.8]} 15... Kb8 {[%clk 0:02:52.7]} 16. Rfd1 {[%clk 0:02:13.5]} 16... Rc8
{[%clk 0:02:52.5]} 17. c3 {[%clk 0:02:12.1]} 17... Rc5 {[%clk 0:02:52.2]} 18.
Qd3 {[%clk 0:02:09.6]} 18... Rhc8 {[%clk 0:02:49.6]} 19. Nd2 {[%clk 0:02:05.2]}
19... Qg6 {[%clk 0:02:44.6]} 20. Nf1 {[%clk 0:02:03]} 20... Rc4 {[%clk
0:02:30.2]} 21. f3 {[%clk 0:01:41.6]} 21... R4c6 {[%clk 0:02:25.9]} 22. Ne3
{[%clk 0:01:39.6]} 22... h5 {[%clk 0:02:25.9]} 23. Nd5 {[%clk 0:01:39.3]} 23...
Bd8 {[%clk 0:02:26.6]} 24. b4 {[%clk 0:01:37.1]} 24... Rc4 {[%clk 0:02:23.8]}
25. Rdb1 {[%clk 0:01:24.7]} 25... h4 {[%clk 0:02:23.1]} 26. b5 {[%clk
0:01:24.3]} 26... h3 {[%clk 0:02:24.6]} 27. g3 {[%clk 0:01:22.7]} 27... axb5
{[%clk 0:02:23.1]} 28. Rxb5 {[%clk 0:01:22.6]} 28... R4c5 {[%clk 0:02:23.6]} 29.
Rab1 {[%clk 0:01:19.3]} 29... R5c7 {[%clk 0:02:15.3]} 30. a6 {[%clk 0:01:09.5]}
30... Ka7 {[%clk 0:02:11.2]} 31. Nxc7 {[%clk 0:01:03.8]} 31... Bxc7 {[%clk
0:02:11.1]} 32. Rxb7+ {[%clk 0:01:01]} 32... Ka8 {[%clk 0:02:12.1]} 33. Qd5
{[%clk 0:00:59.4]} 33... Bb8 {[%clk 0:02:13.3]} 34. Rxb8+ {[%clk 0:00:59]} 34...
Ka7 {[%clk 0:02:14.3]} 35. Qb7# {[%clk 0:00:59.2]} 1-0

[Event "*** MasterClass Titled Tuesday Blitz"]
[Site "Chess.com"]
[Date "2017.10.03"]
[Round "5"]
[White "robbykevlishvili"]
[Black "GeorgMeier"]
[Result "0-1"]
[WhiteElo "2303"]
[BlackElo "2787"]
[TimeControl "180+2"]
[EndTime "14:04:08 PDT"]
[Termination "GeorgMeier won on time"]

1. e4 {[%clk 0:03:01.9]} 1... e6 {[%clk 0:03:01.3]} 2. d4 {[%clk 0:03:02.6]}
2... d5 {[%clk 0:03:02.8]} 3. exd5 {[%clk 0:03:04.5]} 3... exd5 {[%clk
0:03:03.8]} 4. Bd3 {[%clk 0:03:06]} 4... Nc6 {[%clk 0:03:02.8]} 5. c3 {[%clk
0:03:05.7]} 5... Bd6 {[%clk 0:03:03.6]} 6. Ne2 {[%clk 0:03:03.1]} 6... Qh4
{[%clk 0:03:00.7]} 7. Na3 {[%clk 0:02:29.5]} 7... a6 {[%clk 0:02:51.3]} 8. g3
{[%clk 0:02:29.1]} 8... Qh5 {[%clk 0:02:51.5]} 9. O-O {[%clk 0:02:26.8]} 9...
Nge7 {[%clk 0:02:48.3]} 10. Nf4 {[%clk 0:02:23.4]} 10... Qxd1 {[%clk 0:02:48.2]}
11. Rxd1 {[%clk 0:02:25.3]} 11... Bg4 {[%clk 0:02:38.7]} 12. Re1 {[%clk
0:02:24.4]} 12... Kd7 {[%clk 0:02:39.8]} 13. Nc2 {[%clk 0:02:20.9]} 13... h5
{[%clk 0:02:30.3]} 14. Bd2 {[%clk 0:02:10.8]} 14... g6 {[%clk 0:02:14.5]} 15. h4
{[%clk 0:02:06.2]} 15... Bxf4 {[%clk 0:02:10.3]} 16. Bxf4 {[%clk 0:02:05.3]}
16... Bf5 {[%clk 0:02:11.7]} 17. Bxf5+ {[%clk 0:02:06.3]} 17... Nxf5 {[%clk
0:02:13.6]} 18. Ne3 {[%clk 0:02:00.3]} 18... Nxe3 {[%clk 0:01:46.4]} 19. Rxe3
{[%clk 0:02:02.2]} 19... Rhe8 {[%clk 0:01:46.8]} 0-1

[Event "*** MasterClass Titled Tuesday Blitz"]
[Site "Chess.com"]
[Date "2017.10.03"]
[Round "5"]
[White "evgenysharapov"]
[Black "josiwales"]
[Result "0-1"]
[WhiteElo "2255"]
[BlackElo "2363"]
[TimeControl "180+2"]
[EndTime "14:04:09 PDT"]
[Termination "josiwales won by resignation"]

1. e4 {[%clk 0:03:01.9]} 1... c5 {[%clk 0:02:59.4]} 2. Nf3 {[%clk 0:03:02.3]}
2... Nc6 {[%clk 0:03:00.4]} 3. d4 {[%clk 0:03:03.1]} 3... cxd4 {[%clk
0:03:02.3]} 4. Nxd4 {[%clk 0:03:04.2]} 4... Nf6 {[%clk 0:03:04]} 5. Nc3 {[%clk
0:03:05]} 5... e5 {[%clk 0:03:05.6]} 6. Ndb5 {[%clk 0:03:05.7]} 6... d6 {[%clk
0:03:07.1]} 7. Bg5 {[%clk 0:03:05]} 7... a6 {[%clk 0:03:08.5]} 8. Na3 {[%clk
0:03:05.7]} 8... b5 {[%clk 0:03:10.1]} 9. Nd5 {[%clk 0:03:06.4]} 9... Be7 {[%clk
0:03:11.7]} 10. Bxf6 {[%clk 0:03:07.6]} 10... Bxf6 {[%clk 0:03:13.3]} 11. c3
{[%clk 0:03:08.7]} 11... Ne7 {[%clk 0:03:13.7]} 12. Nxf6+ {[%clk 0:03:05.5]}
12... gxf6 {[%clk 0:03:15.6]} 13. Nc2 {[%clk 0:03:05.6]} 13... d5 {[%clk
0:03:13.2]} 14. exd5 {[%clk 0:03:03.7]} 14... Nxd5 {[%clk 0:03:12.8]} 15. a4
{[%clk 0:02:32.5]} 15... Be6 {[%clk 0:02:32]} 16. axb5 {[%clk 0:02:30.5]} 16...
Qb6 {[%clk 0:02:32.6]} 17. Be2 {[%clk 0:01:52.4]} 17... Nf4 {[%clk 0:02:22.1]}
18. g3 {[%clk 0:01:35.7]} 18... Rd8 {[%clk 0:02:12.2]} 19. Qc1 {[%clk
0:01:23.5]} 19... Qb7 {[%clk 0:02:07]} 20. Rg1 {[%clk 0:01:17.5]} 20... Nxe2
{[%clk 0:01:55.1]} 21. Kxe2 {[%clk 0:01:18.2]} 21... Bg4+ {[%clk 0:01:54.3]} 22.
Ke1 {[%clk 0:01:16.4]} 22... Qf3 {[%clk 0:01:55.5]} 23. Kf1 {[%clk 0:01:03.7]}
23... Qd3+ {[%clk 0:01:26.9]} 24. Kg2 {[%clk 0:00:56.5]} 24... Qe4+ {[%clk
0:01:28.3]} 25. Kf1 {[%clk 0:00:53.1]} 25... Bh3+ {[%clk 0:01:29.2]} 0-1

[Event "*** MasterClass Titled Tuesday Blitz"]
[Site "Chess.com"]
[Date "2017.10.03"]
[Round "5"]
[White "NateSolon"]
[Black "DiogenesSinopeus"]
[Result "1-0"]
[WhiteElo "2326"]
[BlackElo "2354"]
[TimeControl "180+2"]
[EndTime "14:04:59 PDT"]
[Termination "NateSolon won by resignation"]

1. d4 {[%clk 0:01:43.9]} 1... Nf6 {[%clk 0:03:00.9]} 2. Bf4 {[%clk 0:01:44.8]}
2... d5 {[%clk 0:03:01.3]} 3. e3 {[%clk 0:01:45.7]} 3... c5 {[%clk 0:03:02.6]}
4. Nc3 {[%clk 0:01:46.5]} 4... cxd4 {[%clk 0:03:02.8]} 5. exd4 {[%clk
0:01:46.6]} 5... a6 {[%clk 0:03:03.2]} 6. Nf3 {[%clk 0:01:45.1]} 6... Nc6 {[%clk
0:03:04]} 7. Ne5 {[%clk 0:01:44.6]} 7... Bf5 {[%clk 0:02:43]} 8. g4 {[%clk
0:01:32.5]} 8... Nxe5 {[%clk 0:02:20.6]} 9. gxf5 {[%clk 0:01:14.4]} 9... Nc6
{[%clk 0:02:11.9]} 10. Qd2 {[%clk 0:01:08.8]} 10... Qb6 {[%clk 0:02:09.3]} 11.
O-O-O {[%clk 0:01:09.1]} 11... Rc8 {[%clk 0:02:09.4]} 12. Bg2 {[%clk 0:01:03.9]}
12... Nb4 {[%clk 0:01:41.1]} 13. a3 {[%clk 0:01:00.8]} 13... Rxc3 {[%clk
0:01:42.6]} 14. axb4 {[%clk 0:00:58.3]} 14... Rc4 {[%clk 0:01:36.7]} 15. b3
{[%clk 0:00:48.5]} 15... Rxb4 {[%clk 0:01:31.9]} 16. Bc7 {[%clk 0:00:42.9]}
16... Qxc7 {[%clk 0:01:23.8]} 17. Qxb4 {[%clk 0:00:43.6]} 17... e5 {[%clk
0:01:25.4]} 18. Qa4+ {[%clk 0:00:43.7]} 18... Nd7 {[%clk 0:01:20.3]} 19. dxe5
{[%clk 0:00:38.8]} 19... Be7 {[%clk 0:01:20.4]} 20. Rxd5 {[%clk 0:00:38.9]}
20... b5 {[%clk 0:01:21.1]} 21. Qxa6 {[%clk 0:00:39.4]} 21... O-O {[%clk
0:01:20.6]} 22. Qxb5 {[%clk 0:00:39.1]} 22... Rc8 {[%clk 0:01:19.1]} 23. c4
{[%clk 0:00:32.6]} 23... Nb6 {[%clk 0:01:13.7]} 24. Rd3 {[%clk 0:00:30]} 24...
Ba3+ {[%clk 0:01:02]} 25. Kc2 {[%clk 0:00:31.1]} 25... Qxe5 {[%clk 0:00:50.2]}
26. Qxe5 {[%clk 0:00:31.2]} 1-0

[Event "*** MasterClass Titled Tuesday Blitz"]
[Site "Chess.com"]
[Date "2017.10.03"]
[Round "5"]
[White "SerGo055"]
[Black "Indianlad"]
[Result "0-1"]
[WhiteElo "2426"]
[BlackElo "2611"]
[TimeControl "180+2"]
[EndTime "14:05:09 PDT"]
[Termination "Indianlad won by resignation"]

1. d4 {[%clk 0:03:01.9]} 1... Nf6 {[%clk 0:03:00.3]} 2. Nf3 {[%clk 0:03:01.8]}
2... g6 {[%clk 0:03:01.7]} 3. c4 {[%clk 0:03:02.7]} 3... Bg7 {[%clk 0:03:03.2]}
4. Nc3 {[%clk 0:03:04.1]} 4... d5 {[%clk 0:03:04.2]} 5. Bf4 {[%clk 0:03:04.2]}
5... O-O {[%clk 0:03:04.8]} 6. e3 {[%clk 0:03:05]} 6... Be6 {[%clk 0:03:06.1]}
7. c5 {[%clk 0:03:04.3]} 7... c6 {[%clk 0:03:06.8]} 8. b4 {[%clk 0:03:04.4]}
8... Bg4 {[%clk 0:03:04.6]} 9. Be2 {[%clk 0:03:00.5]} 9... Nh5 {[%clk 0:02:57]}
10. Be5 {[%clk 0:02:45.3]} 10... Bxf3 {[%clk 0:02:55.4]} 11. Bxf3 {[%clk
0:02:42.1]} 11... Bxe5 {[%clk 0:02:56.9]} 12. dxe5 {[%clk 0:02:41.2]} 12... Ng7
{[%clk 0:02:56.8]} 13. Bg4 {[%clk 0:02:39.1]} 13... a5 {[%clk 0:02:54.7]} 14. a3
{[%clk 0:02:14.4]} 14... axb4 {[%clk 0:02:48.8]} 15. axb4 {[%clk 0:02:15.3]}
15... Rxa1 {[%clk 0:02:50.7]} 16. Qxa1 {[%clk 0:02:16.7]} 16... Na6 {[%clk
0:02:52.6]} 17. Qb2 {[%clk 0:02:13.8]} 17... Qb8 {[%clk 0:02:43.5]} 18. f4
{[%clk 0:02:09.1]} 18... b6 {[%clk 0:02:44.3]} 19. Be2 {[%clk 0:02:03]} 19...
Nc7 {[%clk 0:02:38.4]} 20. Na4 {[%clk 0:01:59.1]} 20... bxc5 {[%clk 0:02:38.7]}
21. Nxc5 {[%clk 0:01:57.1]} 21... Qa7 {[%clk 0:02:37]} 22. O-O {[%clk
0:01:56.7]} 22... Rb8 {[%clk 0:02:38.4]} 23. Qd4 {[%clk 0:01:56.4]} 23... Nf5
{[%clk 0:02:38.1]} 24. Qc3 {[%clk 0:01:54.2]} 24... d4 {[%clk 0:02:29]} 25. exd4
{[%clk 0:01:50.2]} 25... Nd5 {[%clk 0:02:30.2]} 26. Qa1 {[%clk 0:01:06.7]} 26...
Qxa1 {[%clk 0:02:28.8]} 27. Rxa1 {[%clk 0:01:06.7]} 27... Nxd4 {[%clk
0:02:29.4]} 28. Bc4 {[%clk 0:01:02.3]} 28... Rxb4 {[%clk 0:02:29.5]} 29. Bxd5
{[%clk 0:00:48.4]} 29... cxd5 {[%clk 0:02:30.6]} 30. Ra8+ {[%clk 0:00:49.6]}
30... Kg7 {[%clk 0:02:31.1]} 31. Rd8 {[%clk 0:00:51.2]} 31... Ne2+ {[%clk
0:02:12.9]} 32. Kf2 {[%clk 0:00:50.7]} 32... Nxf4 {[%clk 0:02:14.4]} 33. g3
{[%clk 0:00:48]} 33... Rc4 {[%clk 0:02:14.4]} 34. Nd7 {[%clk 0:00:18.5]} 34...
Nd3+ {[%clk 0:02:15.1]} 35. Ke3 {[%clk 0:00:18.6]} 35... Nxe5 {[%clk 0:02:15.8]}
36. Nb6 {[%clk 0:00:14.9]} 36... Re4+ {[%clk 0:02:16.1]} 37. Kf2 {[%clk
0:00:15.5]} 37... e6 {[%clk 0:02:15.6]} 0-1

[Event "*** MasterClass Titled Tuesday Blitz"]
[Site "Chess.com"]
[Date "2017.10.03"]
[Round "5"]
[White "Jungle_Jaguar"]
[Black "WanderingPuppet"]
[Result "1-0"]
[WhiteElo "2396"]
[BlackElo "2321"]
[TimeControl "180+2"]
[EndTime "14:05:16 PDT"]
[Termination "Jungle_Jaguar won on time"]

1. e4 {[%clk 0:03:01.9]} 1... c5 {[%clk 0:02:59.9]} 2. Nf3 {[%clk 0:03:02.7]}
2... d6 {[%clk 0:03:01.1]} 3. d4 {[%clk 0:03:04]} 3... cxd4 {[%clk 0:03:03]} 4.
Nxd4 {[%clk 0:03:05.5]} 4... Nf6 {[%clk 0:03:04.4]} 5. Nc3 {[%clk 0:03:06.8]}
5... a6 {[%clk 0:03:05.7]} 6. h3 {[%clk 0:03:08.1]} 6... g6 {[%clk 0:03:04.6]}
7. g4 {[%clk 0:03:06.6]} 7... Bg7 {[%clk 0:03:05.7]} 8. Be3 {[%clk 0:03:04.3]}
8... O-O {[%clk 0:03:05.9]} 9. Qd2 {[%clk 0:03:04.3]} 9... Nc6 {[%clk
0:03:06.4]} 10. O-O-O {[%clk 0:03:02.8]} 10... Nxd4 {[%clk 0:02:45.2]} 11. Bxd4
{[%clk 0:03:03.2]} 11... b5 {[%clk 0:02:37.7]} 12. Be2 {[%clk 0:03:00.4]} 12...
Be6 {[%clk 0:02:30.5]} 13. g5 {[%clk 0:02:56.1]} 13... Ne8 {[%clk 0:02:01.6]}
14. h4 {[%clk 0:02:53.7]} 14... b4 {[%clk 0:01:54.2]} 15. Nd5 {[%clk 0:02:51.4]}
15... Bxd5 {[%clk 0:01:53.4]} 16. exd5 {[%clk 0:02:50]} 16... Qa5 {[%clk
0:01:54.2]} 17. Bc4 {[%clk 0:02:38.8]} 17... Rc8 {[%clk 0:01:44]} 18. Bb3 {[%clk
0:02:38.3]} 18... Bxd4 {[%clk 0:01:35.8]} 19. Qxd4 {[%clk 0:02:38.5]} 19... Qc5
{[%clk 0:01:34.2]} 20. Qe4 {[%clk 0:02:32.8]} 20... Ng7 {[%clk 0:01:31.4]} 21.
Qxe7 {[%clk 0:02:26.2]} 21... Rfe8 {[%clk 0:01:13.9]} 22. Qf6 {[%clk 0:02:26.9]}
22... Re2 {[%clk 0:01:11.6]} 23. Rd2 {[%clk 0:02:22.8]} 23... Rxd2 {[%clk
0:01:02.4]} 24. Kxd2 {[%clk 0:02:24.7]} 24... Nf5 {[%clk 0:01:01.9]} 25. Kc1
{[%clk 0:02:04.3]} 25... Qxf2 {[%clk 0:00:54.8]} 26. h5 {[%clk 0:02:00.9]} 26...
Re8 {[%clk 0:00:33.2]} 27. Rd1 {[%clk 0:01:46.1]} 27... Qe2 {[%clk 0:00:12.7]}
28. hxg6 {[%clk 0:01:42.7]} 28... hxg6 {[%clk 0:00:09.1]} 29. a4 {[%clk
0:01:30.2]} 29... Ne3 {[%clk 0:00:09]} 30. Rh1 {[%clk 0:01:29.7]} 1-0

[Event "*** MasterClass Titled Tuesday Blitz"]
[Site "Chess.com"]
[Date "2017.10.03"]
[Round "5"]
[White "Angry_Serb"]
[Black "DrVelja"]
[Result "1-0"]
[WhiteElo "2397"]
[BlackElo "2497"]
[TimeControl "180+2"]
[EndTime "14:05:24 PDT"]
[Termination "Angry_Serb won by resignation"]

1. e4 {[%clk 0:03:01.7]} 1... c5 {[%clk 0:03:00.6]} 2. Nc3 {[%clk 0:02:45.1]}
2... Nc6 {[%clk 0:03:00.9]} 3. Bb5 {[%clk 0:02:42]} 3... Nd4 {[%clk 0:02:58.7]}
4. Nf3 {[%clk 0:02:42.5]} 4... Nxb5 {[%clk 0:02:57.7]} 5. Nxb5 {[%clk
0:02:44.4]} 5... d6 {[%clk 0:02:57.6]} 6. d4 {[%clk 0:02:44.6]} 6... Nf6 {[%clk
0:02:37.5]} 7. O-O {[%clk 0:02:44.8]} 7... a6 {[%clk 0:02:35.8]} 8. Nc3 {[%clk
0:02:45.6]} 8... cxd4 {[%clk 0:02:36]} 9. Qxd4 {[%clk 0:02:39.1]} 9... e5 {[%clk
0:02:29.7]} 10. Qd3 {[%clk 0:02:36.9]} 10... h6 {[%clk 0:02:30]} 11. Nd2 {[%clk
0:02:37.4]} 11... Be7 {[%clk 0:02:25.2]} 12. Nc4 {[%clk 0:02:38.5]} 12... b5
{[%clk 0:02:18.5]} 13. Ne3 {[%clk 0:02:38.7]} 13... Be6 {[%clk 0:01:56.9]} 14.
a4 {[%clk 0:02:37]} 14... b4 {[%clk 0:01:57]} 15. Ncd5 {[%clk 0:02:38.1]} 15...
Nxd5 {[%clk 0:01:56.4]} 16. Nxd5 {[%clk 0:02:40]} 16... Bxd5 {[%clk 0:01:49.7]}
17. Qxd5 {[%clk 0:02:41.9]} 17... O-O {[%clk 0:01:48.9]} 18. Bd2 {[%clk
0:02:30.4]} 18... Rc8 {[%clk 0:01:23.1]} 19. Bxb4 {[%clk 0:02:27.5]} 19... Rxc2
{[%clk 0:01:23.8]} 20. Bc3 {[%clk 0:02:27.3]} 20... Qb6 {[%clk 0:01:19.2]} 21.
Qd3 {[%clk 0:02:23.2]} 21... Rxc3 {[%clk 0:01:10.1]} 22. bxc3 {[%clk 0:02:17.2]}
22... Rc8 {[%clk 0:01:10.8]} 23. Rfb1 {[%clk 0:02:13.4]} 23... Qc6 {[%clk
0:01:11.3]} 24. Rb3 {[%clk 0:02:13.2]} 24... Bd8 {[%clk 0:01:12.4]} 25. a5
{[%clk 0:01:45.7]} 25... Bg5 {[%clk 0:00:31.1]} 26. g3 {[%clk 0:01:44.8]} 26...
Kh7 {[%clk 0:00:28.7]} 27. h4 {[%clk 0:01:45.6]} 27... Be7 {[%clk 0:00:28.6]}
28. Rb6 {[%clk 0:01:44.9]} 28... Qc5 {[%clk 0:00:26.1]} 29. Rxa6 {[%clk
0:01:41.1]} 29... Rb8 {[%clk 0:00:27.3]} 30. Rb1 {[%clk 0:01:38.6]} 30... Rxb1+
{[%clk 0:00:21.5]} 31. Qxb1 {[%clk 0:01:40.5]} 31... Qxc3 {[%clk 0:00:17.6]} 32.
Ra7 {[%clk 0:01:37.3]} 32... Bd8 {[%clk 0:00:15.7]} 33. a6 {[%clk 0:01:36.7]}
33... f6 {[%clk 0:00:15.8]} 34. Rb7 {[%clk 0:01:30.7]} 1-0

[Event "*** MasterClass Titled Tuesday Blitz"]
[Site "Chess.com"]
[Date "2017.10.03"]
[Round "5"]
[White "ka1ser64"]
[Black "calemcc"]
[Result "1-0"]
[WhiteElo "2323"]
[BlackElo "2178"]
[TimeControl "180+2"]
[EndTime "14:05:40 PDT"]
[Termination "ka1ser64 won by resignation"]

1. d4 {[%clk 0:03:01.9]} 1... d5 {[%clk 0:03:01.3]} 2. c4 {[%clk 0:03:02.9]}
2... e6 {[%clk 0:03:02.9]} 3. Nf3 {[%clk 0:03:03.9]} 3... c6 {[%clk 0:03:04.4]}
4. Nc3 {[%clk 0:03:04.2]} 4... dxc4 {[%clk 0:03:03.9]} 5. a4 {[%clk 0:03:04.3]}
5... Bb4 {[%clk 0:03:05.1]} 6. e3 {[%clk 0:03:03.9]} 6... b5 {[%clk 0:03:06.6]}
7. Bd2 {[%clk 0:03:04.7]} 7... a5 {[%clk 0:03:07.1]} 8. axb5 {[%clk 0:03:05.8]}
8... Bxc3 {[%clk 0:03:08.7]} 9. Bxc3 {[%clk 0:03:06.9]} 9... cxb5 {[%clk
0:03:10.6]} 10. b3 {[%clk 0:03:08.2]} 10... Bb7 {[%clk 0:03:11.4]} 11. bxc4
{[%clk 0:03:09.1]} 11... b4 {[%clk 0:03:13.1]} 12. Bb2 {[%clk 0:03:10.5]} 12...
Nf6 {[%clk 0:03:14.8]} 13. Bd3 {[%clk 0:03:11.8]} 13... Nbd7 {[%clk 0:03:15.5]}
14. O-O {[%clk 0:03:13]} 14... O-O {[%clk 0:03:17.1]} 15. Nd2 {[%clk 0:03:07.6]}
15... Qc7 {[%clk 0:03:15.9]} 16. Bc2 {[%clk 0:02:56.2]} 16... e5 {[%clk
0:03:09.9]} 17. f4 {[%clk 0:02:48.7]} 17... exd4 {[%clk 0:03:10.6]} 18. exd4
{[%clk 0:02:49.2]} 18... Rfe8 {[%clk 0:03:07.4]} 19. d5 {[%clk 0:02:44]} 19...
Nc5 {[%clk 0:02:58.1]} 20. Be5 {[%clk 0:02:33.2]} 20... Qb6 {[%clk 0:02:55.7]}
21. Bd4 {[%clk 0:02:33.9]} 21... Qd6 {[%clk 0:02:48.9]} 22. Nb3 {[%clk
0:02:19.3]} 22... Nxb3 {[%clk 0:02:39.3]} 23. Bxb3 {[%clk 0:02:20.4]} 23... Qd7
{[%clk 0:02:17.3]} 24. Ba4 {[%clk 0:02:16.7]} 24... Qf5 {[%clk 0:02:14.2]} 25.
Bxf6 {[%clk 0:02:11.3]} 25... Qxf6 {[%clk 0:02:02.1]} 26. Bxe8 {[%clk
0:02:11.7]} 26... Rxe8 {[%clk 0:02:00.2]} 27. c5 {[%clk 0:02:11.1]} 27... Rd8
{[%clk 0:01:39.1]} 28. d6 {[%clk 0:01:26.2]} 28... Qc3 {[%clk 0:01:25.6]} 29.
Qc1 {[%clk 0:01:24]} 29... Qd4+ {[%clk 0:01:22.1]} 30. Kh1 {[%clk 0:01:23.5]}
30... Qd5 {[%clk 0:01:09.8]} 31. Rg1 {[%clk 0:01:16.2]} 31... Ra8 {[%clk
0:01:09.7]} 32. Qe3 {[%clk 0:01:07.6]} 32... h6 {[%clk 0:01:05.8]} 33. Rad1
{[%clk 0:01:08.5]} 33... Qc6 {[%clk 0:00:58.3]} 34. d7 {[%clk 0:01:09.6]} 34...
Rd8 {[%clk 0:00:55.2]} 35. Qe7 {[%clk 0:01:10.6]} 35... Qc7 {[%clk 0:00:50.8]}
36. Rge1 {[%clk 0:01:01.3]} 36... Bc6 {[%clk 0:00:50]} 37. Qxd8+ {[%clk
0:00:57]} 37... Qxd8 {[%clk 0:00:50.1]} 38. Re8+ {[%clk 0:00:58.6]} 38... Qxe8
{[%clk 0:00:51.4]} 39. dxe8=Q+ {[%clk 0:01:00]} 39... Bxe8 {[%clk 0:00:53.2]}
40. Rd8 {[%clk 0:01:01.2]} 40... Kf8 {[%clk 0:00:54.8]} 41. c6 {[%clk
0:00:56.6]} 41... b3 {[%clk 0:00:54.8]} 42. c7 {[%clk 0:00:57.8]} 42... b2
{[%clk 0:00:56]} 43. Rxe8+ {[%clk 0:00:59.2]} 43... Kxe8 {[%clk 0:00:56.9]} 44.
c8=Q+ {[%clk 0:01:00.7]} 44... Ke7 {[%clk 0:00:58.4]} 45. Qb7+ {[%clk 0:01:02]}
1-0

[Event "*** MasterClass Titled Tuesday Blitz"]
[Site "Chess.com"]
[Date "2017.10.03"]
[Round "5"]
[White "krzyzan94"]
[Black "gmcorrales"]
[Result "1-0"]
[WhiteElo "2608"]
[BlackElo "2647"]
[TimeControl "180+2"]
[EndTime "14:05:43 PDT"]
[Termination "krzyzan94 won by resignation"]

1. e4 {[%clk 0:03:01.9]} 1... d5 {[%clk 0:02:59.7]} 2. exd5 {[%clk 0:03:02.9]}
2... Qxd5 {[%clk 0:03:01.6]} 3. Nc3 {[%clk 0:03:04.1]} 3... Qd6 {[%clk
0:03:02.6]} 4. d4 {[%clk 0:03:05.1]} 4... Nf6 {[%clk 0:03:03.4]} 5. Nf3 {[%clk
0:03:04.3]} 5... a6 {[%clk 0:03:04]} 6. g3 {[%clk 0:03:03.2]} 6... Bg4 {[%clk
0:03:04.4]} 7. Bg2 {[%clk 0:03:04.3]} 7... Nc6 {[%clk 0:03:05.6]} 8. Bf4 {[%clk
0:02:59.7]} 8... Qe6+ {[%clk 0:03:03.3]} 9. Ne2 {[%clk 0:02:53.5]} 9... O-O-O
{[%clk 0:00:33.4]} 10. O-O {[%clk 0:02:50.9]} 10... h6 {[%clk 0:00:31.7]} 11.
Re1 {[%clk 0:02:38.1]} 11... g5 {[%clk 0:00:32.2]} 12. Nc3 {[%clk 0:02:18.1]}
12... Qf5 {[%clk 0:00:29.9]} 13. Be5 {[%clk 0:02:11.1]} 13... Bg7 {[%clk
0:00:27.1]} 14. Qe2 {[%clk 0:01:46.4]} 14... Nxe5 {[%clk 0:00:20.7]} 15. dxe5
{[%clk 0:01:43.1]} 15... Nd5 {[%clk 0:00:19.8]} 16. Nxd5 {[%clk 0:01:15.6]}
16... Rxd5 {[%clk 0:00:21.7]} 17. h3 {[%clk 0:01:17.2]} 17... Bxh3 {[%clk
0:00:22.9]} 18. Nh4 {[%clk 0:01:08.9]} 18... Qd7 {[%clk 0:00:17.9]} 19. Bxd5
{[%clk 0:01:09.3]} 19... Qxd5 {[%clk 0:00:19.8]} 20. Nf3 {[%clk 0:01:10.6]}
20... Bg4 {[%clk 0:00:19.8]} 21. Kg2 {[%clk 0:01:11.8]} 21... h5 {[%clk
0:00:20.4]} 22. Qe4 {[%clk 0:01:12.6]} 22... Qe6 {[%clk 0:00:21.1]} 23. Nxg5
{[%clk 0:01:11]} 23... Qb6 {[%clk 0:00:20.1]} 24. f3 {[%clk 0:01:08.9]} 24...
Be6 {[%clk 0:00:19.3]} 25. Nxe6 {[%clk 0:01:09.6]} 25... Qxe6 {[%clk 0:00:20.4]}
26. Rad1 {[%clk 0:01:10.4]} 26... Rg8 {[%clk 0:00:21.2]} 27. Qh7 {[%clk
0:01:01.4]} 27... f5 {[%clk 0:00:21.2]} 28. exf6 {[%clk 0:01:00.7]} 28... Qf7
{[%clk 0:00:21]} 29. fxg7 {[%clk 0:01:00.4]} 29... Kb8 {[%clk 0:00:22.4]} 30.
Rxe7 {[%clk 0:00:57.3]} 30... Qc4 {[%clk 0:00:23.3]} 31. Qe4 {[%clk 0:00:53.5]}
31... Qb5 {[%clk 0:00:20.6]} 32. Re1 {[%clk 0:00:51.4]} 32... Rd8 {[%clk
0:00:19.1]} 33. Re8 {[%clk 0:00:50.5]} 1-0